bitfinex/quotes_ETHUSD_20240702
["timestamp","ask_amount","ask_price","bid_price","bid_amount"]
[1719914763255,0.824,3446.7,3446.1,2.366]
[1719914763454,0.824,3446.5,3446.1,2.366]
[1719914763761,0.824,3446.7,3446.2,0.07161717]
[1719914763968,0.21083972,3446.6,3446.2,0.07161717]
[1719914764267,0.824,3446.7,3446.2,0.07161717]
[1719914767673,3.72536,3446.7,3446.2,0.07161717]
[1719914772396,4.617317,3446.7,3446.2,0.07161717]
[1719914772596,4.617317,3446.7,3445.6,2.366]
[1719914772597,0.824,3446.3,3445.6,2.366]
[1719914772804,0.824,3446.3,3445.7,0.06761086]
[1719914773120,0.824,3446.3,3445.6,2.366]
[1719914773332,3.72569,3446.3,3445.6,2.6026]
[1719914773513,3.72569,3446.3,3445.7,0.06761086]
[1719914773514,0.824,3446.1,3445.7,0.06761086]
[1719914775307,0.824,3446.1,3445.7,0.1256482]
[1719914776141,2.2698,3446.0,3445.7,0.06761086]
[1719914776435,2.90208,3445.8,3445.1,2.3419]
[1719914776597,2.94511746,3446.0,3445.2,0.05804793]
[1719914776598,2.902,3445.9,3445.2,0.05804793]
[1719914776802,0.30273946,3446.0,3445.3,0.05804422]
[1719914777005,2.3196,3446.6,3445.4,3.19]
[1719914777205,0.824,3446.5,3445.6,3.19]
[1719914777528,0.824,3446.3,3445.7,0.319]
[1719914777733,0.824,3446.3,3445.6,2.366]
[1719914778299,2.90149,3446.5,3445.6,2.366]
[1719914778547,0.824,3446.1,3445.6,2.366]
[1719914778707,0.824,3446.1,3445.7,0.29996837]
[1719914780243,0.824,3445.9,3445.7,0.29996837]
[1719914780447,0.824,3445.9,3445.7,0.06336837]
[1719914780943,0.824,3445.9,3445.1,2.3504]
[1719914781124,0.824,3445.9,3445.8,0.06330675]
[1719914781329,2.90198,3446.0,3445.1,2.3504]
[1719914781532,0.824,3446.0,3445.2,0.61744]
[1719914781736,0.824,3446.0,3445.2,3.68076916]
[1719914782038,2.90184,3446.1,3445.2,3.68076916]
[1719914782223,0.824,3445.9,3445.2,3.68076916]
[1719914782423,0.824,3445.9,3445.3,0.60311692]
[1719914782633,0.824,3445.9,3445.4,0.06335997]
[1719914784661,2.90184,3446.1,3445.4,0.06335997]
[1719914784823,0.824,3445.9,3445.4,0.06335997]
[1719914785025,0.824,3445.9,3445.4,0.72308918]
[1719914786684,10.31149,3446.5,3445.5,2.366]
[1719914786975,0.824,3446.0,3445.6,0.0634692]
[1719914787178,0.824,3446.0,3445.6,0.36658489]
[1719914791337,0.824,3446.1,3445.6,0.36658489]
[1719914794762,0.824,3445.9,3445.6,0.36658489]
[1719914794968,0.824,3445.9,3445.6,0.0634692]
[1719914799480,0.33466,3445.9,3445.6,0.0634692]
[1719914803359,0.824,3445.7,3445.6,0.0634692]
[1719914803587,0.824,3445.7,3445.2,5.3222]
[1719914803588,0.824,3445.7,3445.2,2.3222]
[1719914803891,0.824,3445.7,3445.3,0.06130596]
[1719914804200,0.824,3445.7,3445.2,2.3222]
[1719914804488,0.824,3445.7,3445.3,0.06130596]
[1719914804694,0.824,3445.9,3445.3,0.06130596]
[1719914804862,0.824,3445.9,3445.2,2.3222]
[1719914805063,0.824,3445.9,3445.4,0.06130596]
[1719914805290,0.824,3445.9,3445.2,3.144703]
[1719914805462,0.824,3445.9,3445.5,0.06130596]
[1719914805664,0.824,3445.9,3445.2,3.144703]
[1719914805865,0.824,3445.9,3445.6,0.06130596]
[1719914806278,0.824,3445.9,3445.2,3.144703]
[1719914806561,0.824,3445.9,3445.7,0.06130596]
[1719914806891,0.824,3445.9,3445.8,0.06130596]
[1719914807295,0.824,3445.9,3445.2,2.3222]
[1719914807471,0.824,3445.7,3445.2,2.3222]
[1719914807677,0.824,3445.7,3445.3,0.06130596]
[1719914808193,0.824,3445.7,3445.2,2.3222]
[1719914808364,5.37787,3446.0,3445.4,0.06130596]
[1719914808564,0.824,3445.8,3445.3,0.06131997]
[1719914808759,5.37787,3446.0,3445.2,2.55442]
[1719914808979,0.824,3445.7,3445.2,2.55442]
[1719914809184,0.824,3445.7,3445.3,0.06131997]
[1719914809379,0.824,3445.7,3445.2,2.55442]
[1719914809774,0.824,3445.7,3445.3,0.06133398]
[1719914810294,0.824,3445.7,3445.2,2.55442]
[1719914810459,0.824,3445.7,3445.4,0.06133398]
[1719914810658,0.824,3445.7,3445.2,2.55442]
[1719914810862,0.824,3445.7,3445.5,0.06133398]
[1719914811064,0.824,3445.7,3445.2,2.55442]
[1719914811395,0.824,3445.7,3445.6,0.06133398]
[1719914811694,0.824,3445.7,3445.2,2.3222]
[1719914811895,0.824,3445.7,3445.6,0.06133398]
[1719914812194,0.824,3445.7,3445.2,2.3222]
[1719914812395,0.824,3445.7,3445.6,0.06133398]
[1719914812619,0.824,3445.7,3445.2,2.3222]
[1719914812780,0.824,3445.7,3445.6,0.06133398]
[1719914812973,0.824,3445.7,3445.2,2.55442]
[1719914813380,0.824,3445.7,3445.3,0.06139281]
[1719914813582,0.824,3445.7,3445.2,2.55442]
[1719914814110,0.824,3445.7,3445.3,0.06139281]
[1719914814605,0.824,3445.7,3445.2,2.55442]
[1719914814970,0.824,3445.7,3445.3,0.06139281]
[1719914815294,0.30306177,3445.8,3445.2,2.55442]
[1719914815498,0.30306177,3445.8,3445.4,0.06139281]
[1719914815499,1.03480646,3445.7,3445.4,0.06139281]
[1719914815697,0.824,3445.7,3445.2,2.3222]
[1719914816077,0.824,3445.7,3445.3,0.06139281]
[1719914816436,0.824,3445.7,3445.2,2.3222]
[1719914816584,0.824,3445.7,3445.2,2.55442]
[1719914816785,0.824,3445.7,3445.3,0.06139281]
[1719914817208,0.824,3445.7,3445.2,2.55442]
[1719914817727,0.824,3445.7,3445.3,0.06139281]
[1719914818131,0.824,3445.7,3445.2,2.55442]
[1719914818330,0.824,3445.7,3445.4,0.06139281]
[1719914818641,0.824,3445.7,3445.3,0.255442]
[1719914818802,0.824,3445.7,3445.5,0.06139281]
[1719914819001,0.824,3445.7,3445.6,0.06139281]
[1719914819420,1.03478902,3445.7,3445.2,2.55442]
[1719914819589,0.824,3445.7,3445.6,0.06139281]
[1719914819787,1.03478948,3445.7,3445.2,2.55442]
[1719914819998,0.824,3445.7,3445.6,0.0613732]
[1719914820190,1.03479071,3445.7,3445.6,0.0613732]
[1719914821111,1.03479071,3445.7,3445.2,2.55442]
[1719914821442,0.21079071,3445.6,3445.3,0.545716]
[1719914821611,0.824,3445.7,3445.3,0.545716]
[1719914821811,0.21078959,3445.6,3445.3,0.545716]
[1719914822032,0.824,3445.7,3445.3,0.545716]
[1719914822238,0.21078864,3445.6,3445.2,2.55442]
[1719914822420,0.824,3445.7,3445.2,0.23222]
[1719914822758,0.824,3445.5,3444.8,3.0]
[1719914822898,0.824,3445.5,3444.6,2.90305]
[1719914822899,0.824,3445.3,3444.7,3.0]
[1719914823512,0.824,3445.3,3444.8,0.06135077]
[1719914823720,0.21076755,3445.2,3444.8,0.89439085]
[1719914823931,0.824,3445.7,3444.9,2.366]
[1719914824112,0.21077757,3445.6,3444.9,2.42735077]
[1719914824314,0.21077757,3445.5,3445.0,0.05804793]
[1719914824520,0.21077757,3445.4,3445.0,0.05804793]
[1719914824732,0.824,3445.7,3445.1,0.62213588]
[1719914824733,0.21077757,3445.3,3445.1,0.62213588]
[1719914824941,0.824,3445.7,3445.1,0.68348665]
[1719914825124,0.21070235,3445.6,3445.1,0.68348665]
[1719914825317,0.824,3445.7,3445.1,0.68348665]
[1719914825318,0.21070235,3445.5,3445.1,0.68348665]
[1719914825517,0.21070235,3445.4,3445.1,0.68348665]
[1719914825731,0.21070235,3445.3,3445.2,0.30494867]
[1719914825929,0.21070235,3445.3,3445.2,0.36633305]
[1719914827246,0.824,3445.5,3445.2,0.36633305]
[1719914827549,0.21055393,3445.4,3445.2,0.06138438]
[1719914827761,0.824,3445.5,3445.2,0.06138438]
[1719914828048,0.21054769,3445.4,3445.2,0.06138438]
[1719914830833,0.824,3445.5,3445.2,0.06138438]
[1719914831031,0.21057252,3445.4,3445.2,0.06138438]
[1719914831231,0.824,3445.5,3445.2,0.06138438]
[1719914831462,0.21057377,3445.4,3445.2,0.06138438]
[1719914831639,0.824,3445.5,3445.2,0.06138438]
[1719914831829,0.21057099,3445.4,3445.2,0.06138438]
[1719914832031,0.824,3445.5,3445.2,0.06138438]
[1719914832349,0.21056977,3445.4,3445.2,0.06138438]
[1719914832546,0.824,3445.5,3445.2,0.36633641]
[1719914832769,0.21057157,3445.4,3445.2,0.06138438]
[1719914832941,0.824,3445.5,3445.2,0.06138438]
[1719914833154,0.21057057,3445.4,3444.9,2.366]
[1719914833463,0.824,3445.5,3445.3,0.06138438]
[1719914833661,0.21057062,3445.4,3444.9,2.366]
[1719914833871,0.824,3445.5,3444.9,3.56650501]
[1719914834037,0.21057142,3445.4,3444.9,3.56650501]
[1719914834243,0.824,3445.3,3444.9,3.56650501]
[1719914835771,0.30306042,3445.9,3445.0,5.17364]
[1719914836068,0.30306042,3445.9,3445.4,2.2709]
[1719914836366,7.41,3446.1,3445.5,0.05803692]
[1719914837046,0.824,3446.3,3445.5,0.05803692]
[1719914837378,2.2819,3446.6,3445.6,2.2709]
[1719914837544,0.824,3446.4,3445.7,0.58115924]
[1719914837746,0.824,3446.4,3445.8,0.05803255]
[1719914838584,0.824,3446.4,3445.9,0.06132838]
[1719914844209,0.824,3446.2,3445.9,0.06132838]
[1719914844509,0.824,3446.2,3445.7,0.52312669]
[1719914844808,0.824,3446.2,3445.8,0.63096205]
[1719914852899,2.2819,3446.6,3445.8,0.63096205]
[1719914853092,0.824,3446.4,3445.9,2.366]
[1719914853288,0.824,3446.4,3445.9,2.42403313]
[1719914853478,0.824,3446.4,3446.0,0.06117151]
[1719914854506,2.2819,3446.6,3446.0,0.06117151]
[1719914854678,0.824,3446.5,3446.0,0.06117151]
[1719914854884,0.824,3446.5,3446.0,0.36665534]
[1719914855704,0.824,3446.3,3446.0,0.36665534]
[1719914855908,0.824,3446.3,3446.0,0.06117151]
[1719914856078,0.824,3446.3,3445.6,2.2855]
[1719914856278,0.824,3446.1,3445.7,0.0611211]
[1719914865665,0.33466,3446.1,3445.6,2.2855]
[1719914865850,0.33466,3446.1,3445.8,0.06118274]
[1719914866040,0.33466,3446.1,3445.7,0.818791]
[1719914866522,0.33466,3446.1,3445.8,0.06118274]
[1719914866852,0.33466,3446.1,3445.7,0.818791]
[1719914867315,0.33466,3446.1,3445.8,0.06118274]
[1719914867518,0.33466,3446.1,3445.7,0.818791]
[1719914867738,0.33466,3446.1,3445.8,0.37161184]
[1719914872268,0.824,3446.3,3445.8,0.37161184]
[1719914877406,2.3241,3446.4,3445.8,0.37161184]
[1719914877563,1.33317756,3446.3,3445.8,0.37161184]
[1719914877768,0.824,3446.3,3445.8,0.37161184]
[1719914879495,0.50916594,3446.2,3445.8,0.37161184]
[1719914879697,0.824,3446.3,3445.8,0.37161184]
[1719914879900,0.50916603,3446.2,3445.8,0.37161184]
[1719914880204,0.824,3446.3,3445.8,0.37161184]
[1719914880397,0.50916952,3446.2,3445.8,0.37161184]
[1719914880707,0.50916952,3446.1,3445.8,0.37161184]
[1719914881003,3.83925886,3446.3,3445.8,0.37161184]
[1719914881161,0.50916002,3446.2,3445.8,0.37161184]
[1719914881360,3.01525886,3446.2,3445.8,0.37161184]
[1719914881564,0.50915254,3446.1,3445.8,0.37161184]
[1719914881757,3.01525886,3446.3,3445.9,0.34759028]
[1719914881989,3.01525886,3446.3,3446.0,2.4270734]
[1719914882393,1.12668213,3446.6,3446.0,2.4270734]
[1719914882394,3.01525886,3446.2,3446.0,2.4270734]
[1719914882602,3.01525886,3446.2,3446.0,2.84445381]
[1719914882798,3.01525886,3446.5,3446.0,2.78641887]
[1719914882997,3.01525886,3446.5,3446.1,0.05802997]
[1719914883204,3.01525886,3446.5,3446.2,2.366]
[1719914883418,3.01525886,3446.7,3446.2,2.366]
[1719914883724,3.01525886,3446.9,3446.3,0.76997433]
[1719914884833,3.01525886,3446.9,3446.4,0.05802344]
[1719914885332,3.83925886,3447.0,3446.5,0.06102859]
[1719914886327,3.01525886,3447.0,3446.5,0.06102859]
[1719914886484,3.01525886,3447.0,3446.2,2.366]
[1719914886485,0.824,3446.7,3446.2,2.366]
[1719914886684,0.824,3446.7,3446.3,0.06091099]
[1719914886887,0.824,3446.7,3446.2,2.92871955]
[1719914887310,0.824,3446.7,3446.3,0.06091099]
[1719914887514,0.824,3446.7,3446.2,2.92871955]
[1719914887685,0.824,3446.7,3446.3,0.06091099]
[1719914887905,0.824,3446.7,3446.3,0.9152656]
[1719914888111,0.824,3446.7,3446.4,0.06091099]
[1719914891117,0.74546947,3446.7,3446.4,0.06091099]
[1719914894353,0.74546947,3446.7,3446.5,0.06091099]
[1719914894517,0.74546947,3446.7,3446.2,2.366]
[1719914894717,0.74546947,3446.7,3446.3,0.58769999]
[1719914895060,0.74546947,3446.7,3446.3,0.06091099]
[1719914895240,3.18996947,3446.7,3446.3,0.06091099]
[1719914895417,3.18996947,3446.7,3445.9,2.366]
[1719914895619,3.18996947,3446.7,3446.4,0.06091099]
[1719914895945,0.824,3446.5,3445.9,2.366]
[1719914896139,0.824,3446.5,3446.0,0.9086861]
[1719914898561,0.824,3446.5,3446.1,0.06069204]
[1719914898860,0.824,3446.5,3446.0,0.9086861]
[1719914899152,0.33466,3446.5,3446.0,0.9086861]
[1719914899453,0.33466,3446.5,3446.1,0.06069204]
[1719914899814,0.33466,3446.5,3446.0,0.9086861]
[1719914900016,0.33466,3446.5,3446.2,0.06069204]
[1719914900219,0.33466,3446.5,3446.1,0.91767561]
[1719914900719,0.33466,3446.5,3446.2,0.06069204]
[1719914903925,0.33466,3446.5,3445.8,3.0]
[1719914903926,0.33466,3446.5,3445.7,0.818791]
[1719914904149,0.33466,3446.5,3445.8,0.75954077]
[1719914904463,0.33466,3446.5,3445.9,2.3548]
[1719914904764,0.33466,3446.5,3445.9,5.3548]
[1719914904950,0.33466,3446.5,3446.0,0.05866167]
[1719914911237,0.824,3446.1,3446.0,0.05866167]
[1719914911579,0.824,3446.1,3445.7,2.3473]
[1719914911861,3.01525886,3446.5,3445.7,2.88203]
[1719914912165,0.824,3446.2,3445.8,0.05870927]
[1719914912367,0.824,3446.2,3445.7,2.3473]
[1719914912585,0.824,3446.2,3445.8,0.05870927]
[1719914912877,0.824,3446.2,3445.7,2.3473]
[1719914913045,0.824,3446.2,3445.9,0.05870927]
[1719914913239,0.824,3446.2,3445.7,2.3473]
[1719914913447,0.824,3446.2,3446.0,0.05870927]
[1719914913645,0.824,3446.2,3445.7,3.172271]
[1719914913847,0.824,3446.2,3446.1,0.05870927]
[1719914914831,0.824,3446.2,3445.7,2.3473]
[1719914915033,0.824,3446.2,3446.1,0.05874008]
[1719914915235,0.824,3446.2,3445.7,2.3473]
[1719914915455,0.824,3446.2,3446.1,0.05874008]
[1719914915658,0.824,3446.2,3445.7,3.172271]
[1719914915860,0.824,3446.2,3446.1,0.05873728]
[1719914916349,0.824,3446.2,3445.7,3.172271]
[1719914916547,0.824,3446.2,3445.8,0.05873728]
[1719914916740,0.824,3446.2,3445.7,3.172271]
[1719914917278,0.824,3446.2,3445.8,0.05873728]
[1719914917479,0.824,3446.2,3445.7,2.3473]
[1719914917935,0.824,3446.2,3445.8,0.05873728]
[1719914918338,0.824,3446.2,3445.9,0.05873728]
[1719914918548,0.824,3446.2,3445.7,2.3473]
[1719914918749,0.824,3446.2,3445.8,0.05873728]
[1719914918947,0.824,3446.2,3445.7,3.172271]
[1719914919134,0.824,3446.2,3445.8,0.05873728]
[1719914919468,0.824,3446.2,3445.7,3.172271]
[1719914919672,0.824,3446.2,3445.9,0.05873728]
[1719914919886,0.824,3446.2,3445.7,2.3473]
[1719914920043,0.824,3446.2,3446.0,0.05874568]
[1719914920372,0.824,3446.2,3446.1,0.05874568]
[1719914920580,0.824,3446.2,3445.7,2.3473]
[1719914920752,0.824,3446.2,3445.8,0.05874568]
[1719914921082,0.824,3446.2,3445.7,3.172271]
[1719914921286,0.824,3446.2,3445.9,0.05874568]
[1719914921581,0.824,3446.2,3446.0,0.05874568]
[1719914921831,0.824,3446.2,3445.7,3.172271]
[1719914921998,0.824,3446.2,3446.1,0.05874568]
[1719914922146,0.824,3446.2,3445.5,2.366]
[1719914922463,0.824,3446.2,3445.6,0.05877088]
[1719914923737,0.824,3446.0,3445.6,0.05877088]
[1719914924974,0.824,3445.8,3445.6,0.05877088]
[1719914925178,3.3054,3445.9,3445.1,2.3497]
[1719914925363,3.3054,3445.9,3445.2,0.525241]
[1719914925666,3.3054,3445.9,3445.2,0.58205397]
[1719914925866,3.3054,3445.9,3445.2,3.58205397]
[1719914927473,0.824,3445.9,3445.2,3.58205397]
[1719914927678,2.4391,3446.1,3445.2,3.58205397]
[1719914927881,0.824,3445.9,3445.3,1.1737104]
[1719914928245,0.824,3445.9,3445.4,0.05681297]
[1719914935200,0.824,3445.7,3445.4,0.05681297]
[1719914935765,0.824,3445.5,3445.4,0.05681297]
[1719914935973,0.824,3445.5,3444.9,2.2968]
[1719914936200,0.824,3445.2,3445.0,0.05682701]
[1719914938823,0.824,3445.2,3444.5,0.05805605]
[1719914939104,0.824,3445.2,3445.1,0.05127059]
[1719914939701,0.824,3445.2,3444.5,0.05805605]
[1719914939903,0.824,3445.2,3445.1,0.05127059]
[1719914940388,0.824,3445.2,3444.4,2.366]
[1719914940607,0.824,3445.2,3444.5,0.05127059]
[1719914940807,0.824,3445.2,3444.6,0.54172706]
[1719914941305,0.824,3445.2,3444.7,0.05154233]
[1719914941608,3.1226,3445.2,3444.7,0.05154233]
[1719914941782,0.824,3445.0,3444.7,0.05154233]
[1719914941976,0.824,3445.0,3444.4,2.366]
[1719914942181,0.824,3445.0,3444.5,0.87847933]
[1719914942406,0.824,3445.0,3444.5,3.87847933]
[1719914944816,2.4674,3444.9,3444.5,3.87847933]
[1719914945019,2.4674,3444.9,3444.6,3.0]
[1719914945218,2.4674,3444.9,3444.5,0.87847933]
[1719914945379,0.824,3445.0,3444.5,0.87847933]
[1719914945380,0.824,3445.0,3444.5,0.826937]
[1719914945732,0.824,3445.0,3444.6,0.05154233]
[1719914945886,2.4061,3445.2,3444.6,0.05154233]
[1719914945887,0.824,3444.8,3444.6,0.05154233]
[1719914946087,3.3194,3444.8,3444.6,0.05154233]
[1719914946290,3.3194,3444.8,3444.1,2.366]
[1719914946511,3.3194,3444.8,3444.7,0.04982425]
[1719914946712,3.3194,3444.8,3444.2,1.076966]
[1719914947197,0.824,3444.8,3444.3,0.04982425]
[1719914947530,0.824,3444.8,3444.2,1.076966]
[1719914947729,0.824,3444.8,3444.4,0.04982425]
[1719914948022,0.824,3444.8,3444.2,1.076966]
[1719914948023,0.824,3444.8,3444.5,0.04982425]
[1719914948385,0.824,3444.8,3444.2,1.076966]
[1719914948635,0.824,3444.8,3444.3,0.68447185]
[1719914949621,0.824,3444.8,3444.3,0.04982425]
[1719914949803,0.824,3444.8,3444.2,0.526966]
[1719914950022,0.824,3444.8,3444.3,0.04982425]
[1719914950531,0.824,3444.8,3444.2,0.526966]
[1719914950735,0.824,3444.8,3444.4,0.05017725]
[1719914950932,0.824,3444.8,3444.1,2.366]
[1719914951105,0.824,3444.8,3444.5,0.05017725]
[1719914951287,0.824,3444.8,3444.1,2.366]
[1719914951492,0.824,3444.8,3444.6,0.05017725]
[1719914951728,0.824,3444.8,3444.1,5.366]
[1719914951895,0.824,3444.8,3444.7,0.05017725]
[1719914952101,0.824,3444.8,3444.1,5.366]
[1719914952387,0.824,3444.8,3444.1,2.366]
[1719914952593,0.824,3444.8,3444.2,0.05017725]
[1719914953023,0.824,3444.6,3444.2,0.05017725]
[1719914953429,0.824,3444.8,3444.2,0.05017725]
[1719914953635,0.824,3444.8,3444.3,0.54161773]
[1719914954211,0.824,3444.8,3444.4,0.05017725]
[1719914954411,0.824,3444.8,3444.1,2.366]
[1719914954715,0.824,3444.8,3444.2,0.05017725]
[1719914956720,2.4482,3445.0,3444.2,0.05017725]
[1719914956920,0.824,3444.8,3444.2,0.05017725]
[1719914957126,0.824,3444.8,3444.2,1.17252298]
[1719914957505,2.443,3444.7,3444.2,1.17252298]
[1719914958323,3.267,3444.7,3444.2,1.17252298]
[1719914959225,0.824,3444.4,3444.2,0.05017725]
[1719914959441,0.824,3444.7,3444.2,0.05017725]
[1719914959613,0.824,3444.8,3444.0,3.0]
[1719914959809,0.824,3444.8,3444.1,1.17631525]
[1719914961134,0.824,3444.8,3444.2,2.366]
[1719914961492,0.824,3444.8,3444.3,0.05016605]
[1719914961910,0.824,3444.8,3444.2,2.366]
[1719914962119,0.824,3444.8,3444.4,0.05016605]
[1719914962319,0.824,3444.8,3444.2,3.5959318]
[1719914962535,0.824,3444.8,3444.5,0.05016605]
[1719914962731,0.824,3444.8,3444.2,2.366]
[1719914962934,0.824,3444.8,3444.6,0.05016605]
[1719914963172,0.824,3444.8,3444.2,2.366]
[1719914963353,0.824,3444.8,3444.7,0.05016605]
[1719914963514,0.824,3444.8,3444.2,2.366]
[1719914964038,0.824,3444.8,3444.3,0.05016605]
[1719914964645,0.824,3444.6,3444.4,0.05029497]
[1719914965052,0.824,3444.6,3444.2,2.366]
[1719914965215,0.824,3444.6,3444.5,0.05029497]
[1719914965418,0.824,3444.6,3444.0,5.366]
[1719914965730,0.824,3444.6,3444.1,0.05029497]
[1719914965931,0.824,3444.6,3444.1,3.05029497]
[1719914966310,2.3201,3444.8,3444.1,0.05029497]
[1719914966311,0.824,3444.2,3444.1,0.05029497]
[1719914966646,0.824,3444.2,3443.8,2.366]
[1719914966963,0.824,3444.2,3444.1,0.05029497]
[1719914967130,0.824,3444.2,3443.8,2.366]
[1719914967326,0.824,3444.2,3444.1,0.05029497]
[1719914967530,0.824,3444.2,3443.8,2.366]
[1719914967756,0.824,3444.2,3444.1,0.05029497]
[1719914968362,0.824,3444.2,3443.8,2.366]
[1719914968539,0.824,3444.2,3444.1,0.05029497]
[1719914969030,0.824,3444.2,3443.8,2.366]
[1719914969356,0.824,3444.2,3443.9,0.05029497]
[1719914969940,0.824,3444.4,3443.9,0.05029497]
[1719914970342,0.824,3444.2,3443.9,0.05029497]
[1719914970551,0.824,3444.3,3443.9,0.05029497]
[1719914970756,0.824,3444.4,3443.9,0.59192447]
[1719914972463,0.824,3444.4,3443.9,0.05029497]
[1719914972760,2.3201,3444.5,3443.9,0.05029497]
[1719914972961,0.824,3444.4,3443.9,0.05029497]
[1719914974455,0.824,3444.2,3443.9,0.05029497]
[1719914974660,0.824,3444.2,3443.7,2.366]
[1719914974877,0.824,3444.4,3444.0,0.05053605]
[1719914975078,0.824,3444.4,3443.7,2.366]
[1719914975254,0.824,3444.2,3444.1,0.04885152]
[1719914975456,0.824,3444.2,3443.7,2.366]
[1719914975656,0.824,3444.2,3444.1,0.04885152]
[1719914976151,0.824,3444.2,3443.7,2.366]
[1719914976349,0.824,3444.2,3444.1,0.04885152]
[1719914976861,0.824,3444.2,3443.7,2.366]
[1719914977068,0.824,3444.2,3444.1,0.04885152]
[1719914977268,0.824,3444.2,3443.7,2.9026]
[1719914977463,0.824,3444.2,3444.1,0.04885152]
[1719914977669,0.824,3444.2,3443.7,2.9026]
[1719914977870,0.824,3444.2,3444.1,0.04885152]
[1719914978065,0.824,3444.2,3443.7,2.9026]
[1719914978264,0.824,3444.2,3443.8,0.29026]
[1719914978779,0.824,3444.2,3443.9,0.04885152]
[1719914981182,0.824,3444.2,3443.7,2.366]
[1719914981388,0.824,3444.2,3444.0,0.04885152]
[1719914981583,0.824,3444.2,3443.7,2.366]
[1719914981791,0.824,3444.2,3444.1,0.04885152]
[1719914981997,0.824,3444.2,3443.7,2.366]
[1719914982172,0.824,3444.2,3444.1,0.04885152]
[1719914982373,0.824,3444.2,3443.7,2.366]
[1719914982573,0.824,3444.2,3444.1,0.04885152]
[1719914982769,0.824,3444.2,3443.7,2.366]
[1719914982967,0.824,3444.3,3444.1,0.04885152]
[1719914983206,0.824,3444.3,3443.5,2.366]
[1719914983401,0.824,3444.3,3444.2,0.04885152]
[1719914983402,2.3796,3444.3,3444.2,0.04885152]
[1719914983578,3.2036,3444.3,3443.5,2.366]
[1719914983783,0.824,3444.1,3443.5,2.366]
[1719914984003,0.824,3444.1,3443.6,0.04891879]
[1719914985403,0.824,3443.9,3443.6,0.04891879]
[1719914985986,0.824,3443.9,3443.3,5.3142]
[1719914986516,0.824,3443.9,3443.4,0.04891879]
[1719914987507,2.2632,3444.1,3443.4,2.32711879]
[1719914987704,0.824,3444.0,3443.4,2.32711879]
[1719914988030,0.824,3444.0,3443.5,0.82313188]
[1719914988243,0.824,3444.0,3443.5,3.82313188]
[1719914988538,2.3766,3443.9,3443.6,0.04891879]
[1719914988678,2.3766,3443.9,3442.8,5.27059]
[1719914988878,2.3766,3443.9,3442.8,8.99914]
[1719914989080,0.824,3443.7,3442.9,0.04894403]
[1719914989273,2.3766,3443.9,3443.0,0.6143494]
[1719914989535,0.824,3443.7,3443.0,0.66329623]
[1719914990083,0.824,3443.7,3443.0,3.66329623]
[1719914991582,0.824,3443.7,3443.1,0.058081]
[1719914991784,2.3766,3443.9,3443.2,2.366]
[1719914992092,0.824,3443.8,3443.3,0.94231845]
[1719914993551,0.824,3443.7,3443.3,0.04894683]
[1719914994036,0.824,3443.7,3443.2,2.366]
[1719914994344,0.33466,3443.7,3443.2,2.366]
[1719914994560,0.33466,3443.7,3443.3,0.04909267]
[1719914994834,0.33466,3443.7,3443.3,0.89338621]
[1719914994989,0.33466,3443.7,3443.4,0.04909267]
[1719914996193,5.26673,3444.2,3443.4,0.04909267]
[1719914996394,0.824,3443.8,3443.4,0.04909267]
[1719914997101,0.824,3443.8,3443.2,2.366]
[1719914997398,0.824,3443.8,3443.5,0.04909267]
[1719914997598,0.824,3443.8,3443.3,0.88847694]
[1719914997798,0.824,3443.8,3443.6,0.04909267]
[1719914998099,0.824,3443.8,3443.3,0.88847694]
[1719914998302,0.824,3443.8,3443.7,0.04909267]
[1719914998513,0.824,3443.8,3443.3,0.88847694]
[1719914998713,0.824,3443.9,3443.7,0.04909267]
[1719914998919,0.824,3443.9,3443.3,0.88847694]
[1719914999097,0.824,3443.9,3443.8,0.04909267]
[1719914999622,0.824,3443.9,3443.3,0.88847694]
[1719914999945,0.824,3443.9,3443.4,0.04909267]
[1719915000236,0.824,3443.9,3443.2,2.366]
[1719915000446,0.824,3443.9,3443.5,0.04909267]
[1719915000655,0.824,3443.9,3443.2,2.366]
[1719915001116,0.824,3443.9,3443.3,0.04909267]
[1719915004612,0.824,3443.7,3443.3,0.04909267]
[1719915005130,0.824,3443.7,3443.2,2.366]
[1719915005305,0.824,3443.7,3443.4,0.04910947]
[1719915005504,0.824,3443.7,3443.2,2.366]
[1719915005826,0.824,3443.7,3443.5,0.04910947]
[1719915006032,0.824,3443.7,3443.2,2.366]
[1719915006341,0.824,3443.7,3443.6,0.04910947]
[1719915006516,0.824,3443.7,3443.2,2.366]
[1719915006716,0.824,3443.7,3443.6,0.04910947]
[1719915006903,0.824,3443.7,3443.2,2.366]
[1719915007110,0.824,3443.7,3443.6,0.04910947]
[1719915007313,0.824,3443.7,3443.2,2.366]
[1719915007543,0.824,3443.7,3443.6,0.04910947]
[1719915007912,0.824,3443.7,3443.2,2.366]
[1719915008133,0.824,3443.7,3443.6,0.04910947]
[1719915008355,0.824,3443.7,3443.2,2.366]
[1719915008546,0.824,3443.7,3443.6,0.04910947]
[1719915008842,0.824,3443.7,3443.1,2.90435]
[1719915009038,0.824,3443.7,3443.6,0.04910947]
[1719915009346,0.824,3443.7,3443.0,5.9803494]
[1719915009577,0.824,3443.7,3443.6,0.04910947]